bitfinex-derivatives/quotes_BNBF0:USTF0_20250316
["timestamp","ask_amount","ask_price","bid_price","bid_amount"]
[1742127651672,1.03068322,597.58,595.87,1.71836814]
[1742127651872,1.03068322,597.58,595.88,1.71836814]
[1742127652079,1.03068322,597.58,595.89,1.71836814]
[1742127652374,1.03068322,597.58,595.9,1.71836814]
[1742127652578,1.03068322,597.58,595.91,1.71836814]
[1742127652779,1.03068322,597.58,595.92,1.71836814]
[1742127652979,1.03068322,597.58,595.93,1.71836814]
[1742127653181,1.03068322,597.58,595.94,0.30812682]
[1742127653381,1.03068322,597.58,595.91,0.30812682]
[1742127653680,1.03068322,597.58,595.95,1.20238051]
[1742127653879,1.03068322,597.58,595.96,0.30812682]
[1742127654480,1.03068322,597.58,595.97,0.30812682]
[1742127654680,1.03068322,597.58,595.98,0.30812682]
[1742127654977,1.03068322,597.58,595.99,0.30812682]
[1742127655179,1.03068322,597.58,595.81,0.33567748]
[1742127655481,1.03068322,597.58,595.82,1.71679315]
[1742127655680,1.03068322,597.58,595.83,2.91680939]
[1742127655881,1.03068322,597.58,595.84,1.71679315]
[1742127656079,1.03068322,597.58,595.85,2.91680939]
[1742127656281,1.03068322,597.58,595.86,2.91680939]
[1742127656479,1.03068322,597.58,595.87,1.71679315]
[1742127656675,1.03068322,597.58,595.88,2.91680939]
[1742127656875,1.03068322,597.58,595.89,1.71679315]
[1742127657180,1.03068322,597.58,595.9,2.91680939]
[1742127657380,1.03068322,597.58,595.91,1.71679315]
[1742127657582,1.03068322,597.58,595.92,1.71679315]
[1742127657783,1.03068322,597.58,595.93,1.71679315]
[1742127658081,1.03068322,597.58,595.94,1.71679315]
[1742127658381,1.03068322,597.58,595.95,0.30812438]
[1742127658575,1.03068322,597.58,595.96,1.20001624]
[1742127659478,1.03068322,597.58,595.97,1.20001624]
[1742127659880,1.03068322,597.58,595.85,2.123]
[1742127659881,1.03068322,597.58,595.98,1.20001624]
[1742127660082,1.03068322,597.58,595.99,1.71441259]
[1742127660282,1.03068322,597.58,596.0,2.91442883]
[1742127660479,1.03068322,597.58,596.01,1.40631124]
[1742127660678,1.03068322,597.58,596.02,1.40631124]
[1742127660982,1.03068322,597.58,596.03,1.40649397]
[1742127661283,1.03068322,597.58,596.01,1.20001624]
[1742127661481,1.03068322,597.58,596.02,2.91507484]
[1742127661682,1.03068322,597.58,596.03,0.30807963]
[1742127662280,1.03068322,597.58,596.04,1.20001624]
[1742127662479,1.03068322,597.58,596.05,0.30807963]
[1742127662880,1.03068322,597.58,596.06,1.20001624]
[1742127663278,1.03068322,597.58,596.07,1.20001624]
[1742127664084,1.03068322,597.58,595.85,2.123]
[1742127664286,1.03068322,597.58,595.9,0.29168448]
[1742127664486,1.03068322,597.58,595.91,2.04993154]
[1742127664782,1.03068322,597.58,595.92,2.91221245]
[1742127665088,2.55021061,597.56,595.93,2.04992027]
[1742127665283,2.55021061,597.56,595.94,2.04991464]
[1742127665589,2.55021061,597.56,595.95,2.04990901]
[1742127665786,0.33470562,597.54,595.96,1.71431039]
[1742127665986,0.33470562,597.54,595.97,1.40623486]
[1742127666286,0.33470562,597.54,595.98,1.88235285]
[1742127666489,0.33470562,597.54,595.99,2.04956765]
[1742127666682,0.33470562,597.54,596.0,2.04956201]
[1742127666887,0.33470562,597.54,595.98,1.19790206]
[1742127666888,0.33470562,597.54,596.01,2.04955638]
[1742127667186,0.33470562,597.54,596.02,2.04955075]
[1742127667486,0.33470562,597.54,596.03,1.71399155]
[1742127667688,2.55021061,597.42,596.04,1.71399155]
[1742127667986,0.33477846,597.41,596.05,2.04953387]
[1742127668194,0.33477846,597.41,596.06,2.04952824]
[1742127668394,1.03077846,597.41,596.07,2.04952261]
[1742127668594,1.03077846,597.41,596.08,2.04951698]
[1742127668794,1.03077846,597.41,596.09,2.04951135]
[1742127669094,1.03077846,597.41,596.1,2.04950572]
[1742127669291,1.03077846,597.41,596.11,1.71324359]
[1742127669492,1.03077846,597.41,596.12,1.71324359]
[1742127669693,1.03077846,597.41,596.13,2.91114565]
[1742127669896,1.03077846,597.41,596.14,1.71324359]
[1742127670196,1.03077846,597.41,596.15,2.91114565]
[1742127670392,1.03077846,597.41,596.16,1.71324359]
[1742127670588,1.03077846,597.41,596.17,1.71324359]
[1742127670793,1.03077846,597.41,596.18,1.71324359]
[1742127670989,1.03077846,597.41,596.19,1.71125644]
[1742127671193,1.03077846,597.41,596.2,0.68368662]
[1742127671495,1.03077846,597.41,596.21,1.40280241]
[1742127671796,1.03077846,597.41,596.22,2.90865556]
[1742127671994,1.03077846,597.41,596.23,1.7107535]
[1742127672189,1.03077846,597.41,596.24,1.7107535]
[1742127672391,1.03077846,597.41,596.25,0.68356218]
[1742127672590,1.03077846,597.41,596.26,1.50585315]
[1742127672789,1.03077846,597.41,596.27,0.30795109]
[1742127673394,1.03077846,597.41,596.27,0.832]
[1742127673594,1.03077846,597.41,596.28,0.30799461]
[1742127675196,1.03077846,597.41,596.27,0.832]
[1742127680804,1.03077846,597.41,596.27,1.73]
[1742127684607,2.55021061,597.27,596.27,1.73]
[1742127684905,0.33486814,597.25,596.27,1.73]
[1742127685501,0.33486814,597.25,595.79,0.29174194]
[1742127685701,0.33486814,597.25,595.8,1.72261114]
[1742127685901,0.33486814,597.25,595.81,1.72261114]
[1742127686102,0.33486814,597.25,595.82,1.72261114]
[1742127686301,0.33486814,597.25,595.83,1.03642271]
[1742127686505,0.33486814,597.25,595.84,1.03749244]
[1742127686807,0.33486814,597.25,595.85,1.03749244]
[1742127687008,0.33486814,597.25,595.86,1.20506545]
[1742127687201,2.88507875,597.25,595.86,1.20506545]
[1742127687803,2.88507875,597.25,595.87,1.03700145]
[1742127688003,2.88507875,597.25,595.87,1.20506545]
[1742127688202,2.88507875,597.25,595.88,1.91294437]
[1742127688402,2.88507875,597.25,595.88,1.82]
[1742127688909,2.88507875,597.25,595.89,2.41006545]
[1742127689106,2.88507875,597.25,595.89,1.205]
[1742127689703,0.696,597.24,595.89,1.205]
[1742127690208,0.33488496,597.22,595.89,1.205]
[1742127707517,0.33488496,597.22,595.9,1.008]
[1742127710117,0.33488496,597.22,595.9,1.866]
[1742127713525,0.696,597.21,595.9,1.866]
[1742127713721,0.33490179,597.19,595.9,1.866]
[1742127717730,2.55021061,596.87,595.9,1.866]
[1742127718028,0.33509256,596.85,595.9,1.866]
[1742127719627,2.88530317,596.85,595.9,1.866]
[1742127722431,2.55021061,596.84,595.9,1.866]
[1742127722630,0.33510941,596.82,595.9,1.866]
[1742127726334,2.55021061,596.75,595.9,1.866]
[1742127726535,0.33515995,596.73,595.9,1.866]
[1742127728635,2.55021061,596.68,595.9,1.866]
[1742127728831,0.33519365,596.67,595.9,1.866]
[1742127730332,2.55021061,596.63,595.9,1.866]
[1742127730533,0.33522174,596.62,595.9,1.866]
[1742127732636,0.33522174,596.62,595.9,2.791]
[1742127732938,2.55021061,596.61,595.9,2.791]
[1742127733133,0.33523298,596.6,595.9,2.791]
[1742127745359,0.697,596.59,595.9,2.791]
[1742127745957,0.33524422,596.58,595.9,2.791]
[1742127772177,1.03224422,596.58,595.9,2.791]
[1742127787299,0.697,596.58,595.9,2.791]
[1742127788196,0.697,596.58,595.91,1.04065125]
[1742127788391,0.697,596.58,595.9,2.791]
[1742127788592,0.697,596.58,595.51,0.2919108]
[1742127788796,0.697,596.58,595.52,2.06453775]
[1742127788996,0.697,596.58,595.53,2.06455038]
[1742127789197,0.697,596.58,595.54,2.06454474]
[1742127789393,0.697,596.58,595.55,2.0645391]
[1742127789597,0.697,596.58,595.56,2.9389157]
[1742127789796,0.697,596.58,595.57,1.72871508]
[1742127789992,0.697,596.58,595.58,2.06452219]
[1742127790197,0.697,596.58,595.59,3.27471717]
[1742127790395,0.697,596.58,595.6,2.06451091]
[1742127790598,0.697,596.58,595.61,1.42048863]
[1742127790798,0.697,596.58,595.62,3.27468632]
[1742127790998,0.697,596.58,595.63,2.06359245]
[1742127791298,0.697,596.58,595.64,2.93801415]
[1742127791500,0.697,596.58,595.65,1.72781353]
[1742127791697,0.697,596.58,595.66,1.72781353]
[1742127791894,0.697,596.58,595.67,1.72781353]
[1742127792097,0.697,596.58,595.68,2.06356392]
[1742127792297,0.697,596.58,595.69,3.27375891]
[1742127792598,0.697,596.58,595.7,1.75534048]
[1742127792800,0.697,596.58,595.71,2.9380211]
[1742127793099,0.697,596.58,595.72,1.72782048]
[1742127793294,0.697,596.58,595.73,2.9380211]
[1742127793499,0.697,596.58,595.74,1.72782048]
[1742127793705,0.697,596.58,595.75,1.72782048]
[1742127794002,0.697,596.58,595.76,1.72782048]
[1742127794201,0.697,596.58,595.77,1.72782048]
[1742127794401,0.697,596.58,595.78,1.72782048]
[1742127794702,0.697,596.58,595.79,1.72782048]
[1742127794904,0.697,596.58,595.8,1.41960102]
[1742127795196,0.697,596.58,595.81,1.41912485]
[1742127795399,0.697,596.58,595.82,1.4187378]
[1742127795606,0.697,596.58,595.83,1.4187378]
[1742127795904,0.697,596.58,595.84,1.4187378]
[1742127796106,0.697,596.58,595.85,1.4187378]
[1742127796311,0.697,596.58,595.86,1.4187378]
[1742127796512,0.697,596.58,595.87,1.4187378]
[1742127796706,0.697,596.58,595.88,1.4187378]
[1742127796906,0.697,596.58,595.89,1.4187378]
[1742127797106,0.697,596.58,595.9,1.4187378]
[1742127797317,0.697,596.58,595.91,2.62654005]
[1742127797508,0.697,596.58,595.92,1.41777799]
[1742127797713,0.697,596.58,595.93,1.41777799]
[1742127797913,0.697,596.58,595.94,1.41777799]
[1742127798111,0.697,596.58,595.95,1.41777799]
[1742127798317,0.697,596.58,595.96,1.41777799]
[1742127798510,2.55021061,597.37,595.97,1.41777799]
[1742127798713,0.33480648,597.36,595.98,1.41777799]
[1742127799010,0.33480648,597.36,595.99,1.41777799]
[1742127799210,0.33480648,597.36,596.0,1.41777799]
[1742127799413,0.33480648,597.36,596.01,1.72586487]
[1742127799610,0.33480648,597.36,596.02,1.72586487]
[1742127799915,0.33480648,597.36,596.01,1.20876206]
[1742127799916,0.33480648,597.36,596.03,1.72586487]
[1742127800116,0.33480648,597.36,596.04,1.72586487]
[1742127800316,0.33480648,597.36,596.05,1.41777799]
[1742127800510,0.33480648,597.36,596.06,1.41644982]
[1742127800815,0.33480648,597.36,596.07,1.41645346]
[1742127801011,0.33480648,597.36,596.08,1.03798889]
[1742127801217,0.33480648,597.36,596.09,1.03798889]
[1742127801417,0.33480648,597.36,596.08,1.20876206]
[1742127801816,0.33480648,597.36,596.09,2.24320566]
[1742127802019,0.33480648,597.36,596.09,1.20876206]
[1742127802319,0.696,597.35,596.09,1.20876206]
[1742127802717,0.33481769,597.34,595.83,0.29166737]
[1742127802918,0.33481769,597.34,595.84,1.74824021]
[1742127803119,0.33481769,597.34,595.85,1.41257963]
[1742127803415,0.33481769,597.34,595.86,1.41257963]
[1742127803617,0.33481769,597.34,595.87,1.41257963]
[1742127803816,0.33481769,597.34,595.88,1.41257963]
[1742127804018,0.33481769,597.34,595.89,1.41257963]
[1742127804216,0.33481769,597.34,595.9,2.61630155]
[1742127804414,0.33481769,597.34,595.91,1.41280297]
[1742127804621,0.33481769,597.34,595.92,2.23818596]
[1742127804921,0.33481769,597.34,595.93,1.03446404]
[1742127805722,0.33481769,597.34,595.94,1.20372192]
[1742127806617,0.33481769,597.34,595.85,1.20372192]
[1742127806822,0.33481769,597.34,595.84,0.33566058]
[1742127806823,0.33481769,597.34,595.86,2.23835142]
[1742127807021,0.33481769,597.34,595.87,1.03467209]
[1742127807220,0.33481769,597.34,595.86,1.20372192]
[1742127807421,0.33481769,597.34,595.87,1.03469901]
[1742127807723,0.33481769,597.34,595.85,1.20372192]
[1742127807917,0.33481769,597.34,595.86,1.0346087]
[1742127808118,0.33481769,597.34,595.87,1.0346087]
[1742127808323,0.33481769,597.34,595.85,1.20372192]
[1742127808524,0.33481769,597.34,595.86,1.41255258]
[1742127808722,0.33481769,597.34,595.87,1.03447056]
[1742127808915,0.33481769,597.34,595.87,1.20372192]
[1742127809624,0.33481769,597.34,595.88,1.20372192]
[1742127810225,0.33481769,597.34,595.89,1.20372192]
[1742127810627,0.33481769,597.34,595.9,1.20372192]
[1742127811121,0.33481769,597.34,595.84,0.33566058]
[1742127811328,0.33481769,597.34,595.85,1.033831]
[1742127811526,0.33481769,597.34,595.86,2.23685544]
[1742127811727,0.33481769,597.34,595.87,1.033831]
[1742127811926,0.33481769,597.34,595.88,2.23655567]
[1742127812227,0.33481769,597.34,595.89,1.03346096]
[1742127812532,0.33481769,597.34,595.9,1.20302444]
[1742127813026,0.33481769,597.34,595.91,1.20302444]
[1742127813629,0.33481769,597.34,595.92,1.20302444]
[1742127814130,0.33481769,597.34,595.84,0.33566058]
[1742127814334,0.33481769,597.34,595.85,1.71898221]
[1742127814633,0.33481769,597.34,595.86,2.92101474]
[1742127814831,0.33481769,597.34,595.87,1.71898221]
[1742127815027,0.33481769,597.34,595.88,1.03318927]
[1742127815332,0.33481769,597.34,595.89,2.2352218]
[1742127815532,0.33481769,597.34,595.9,1.71908246]
[1742127815734,0.33481769,597.34,595.91,1.71908246]
[1742127815933,0.33481769,597.34,595.92,1.71908246]
[1742127816234,0.33481769,597.34,595.93,2.92111499]
[1742127816433,0.33481769,597.34,595.94,1.71908246]
[1742127816634,0.33481769,597.34,595.95,1.71908246]
[1742127816933,0.33481769,597.34,595.96,2.92111499]
[1742127817134,0.33481769,597.34,595.97,1.34142219]
[1742127817329,0.33481769,597.34,595.97,1.20203253]
[1742127817935,0.33481769,597.34,595.98,1.20203253]
[1742127818634,0.33481769,597.34,595.99,1.20203253]
[1742127819232,0.33481769,597.34,595.84,0.33566058]
[1742127819437,0.33481769,597.34,595.85,1.40997342]
[1742127819633,0.33481769,597.34,595.86,1.74562273]
[1742127819938,0.696,597.33,595.87,2.94692445]
[1742127820135,0.3348345,597.31,595.88,2.61128077]
[1742127820335,0.3348345,597.31,595.89,1.40997342]
[1742127820541,0.3348345,597.31,595.9,2.23382214]
[1742127820844,0.3348345,597.31,595.91,1.03251479]
[1742127821240,0.3348345,597.31,595.92,1.20130735]
[1742127822341,0.3348345,597.31,595.89,1.20130735]
[1742127822542,0.3348345,597.31,595.9,1.41154285]
[1742127822841,0.3348345,597.31,595.91,1.03370932]
[1742127823038,0.3348345,597.31,595.92,1.03370932]
[1742127823238,0.3348345,597.31,595.89,1.20130735]
[1742127823444,0.3348345,597.31,595.93,1.20130735]
[1742127824243,0.3348345,597.31,595.89,1.20130735]
[1742127824442,0.3348345,597.31,595.9,0.37800483]
[1742127824640,0.3348345,597.31,595.91,1.03414168]
[1742127824840,0.3348345,597.31,595.92,2.23544903]
[1742127825046,0.3348345,597.31,595.92,1.20130735]
[1742127825547,0.3348345,597.31,595.89,1.20130735]
[1742127825748,0.3348345,597.31,595.9,1.41261977]
[1742127825944,0.3348345,597.31,595.91,1.03448914]
[1742127826149,0.3348345,597.31,595.92,1.03448914]
[1742127826349,0.3348345,597.31,595.93,1.03448914]
[1742127826852,2.55021061,597.26,595.94,1.5795442]
[1742127827041,0.33487375,597.24,595.95,1.41268648]
[1742127827241,0.33487375,597.24,595.96,1.41268648]
[1742127827542,0.33487375,597.24,595.97,2.23579649]
[1742127827749,0.33487375,597.24,595.98,1.03448914]
[1742127828249,0.33487375,597.24,595.99,1.20130735]
[1742127828849,0.33487375,597.24,595.89,1.20130735]
[1742127829042,0.33487375,597.24,595.9,1.41348704]
[1742127829243,0.33487375,597.24,595.91,1.41348704]
[1742127829448,0.33487375,597.24,595.92,1.41348704]
[1742127829647,0.33487375,597.24,595.93,1.41348704]
[1742127829846,0.33487375,597.24,595.94,1.03512648]
[1742127830050,0.33487375,597.24,595.95,1.03512648]
[1742127830251,0.33487375,597.24,595.96,1.03543334]
[1742127830453,0.33487375,597.24,595.97,1.03543334]
[1742127830649,0.33487375,597.24,595.95,0.948]
[1742127831250,0.33487375,597.24,595.96,1.03573169]
[1742127831451,0.33487375,597.24,595.95,0.948]
[1742127831651,0.33487375,597.24,595.96,2.23732751]
[1742127831950,0.33487375,597.24,595.97,1.03602016]
[1742127832151,0.33487375,597.24,595.96,1.20130735]
[1742127832355,0.33487375,597.24,595.97,2.23784599]
[1742127832650,0.33487375,597.24,595.97,1.20130735]
[1742127832848,0.33487375,597.24,595.95,0.948]
[1742127835155,2.55021061,597.22,595.95,0.948]
[1742127835347,0.33489618,597.2,595.95,0.948]
[1742127837049,0.33489618,597.2,595.96,1.20787275]
[1742127837651,1.03089618,597.2,595.95,0.948]
[1742127838952,1.03089618,597.2,595.96,1.089]
[1742127840959,1.03089618,597.2,595.97,1.03927611]
[1742127841259,1.03089618,597.2,595.98,2.24835709]
[1742127841458,1.03089618,597.2,595.98,1.20906954]
[1742127841759,1.03089618,597.2,595.99,1.03923314]
[1742127841958,1.03089618,597.2,595.96,1.089]
[1742127842159,1.03089618,597.2,595.97,1.03945183]
[1742127842359,1.03089618,597.2,595.98,1.41948948]
[1742127842660,1.03089618,597.2,595.96,1.089]
[1742127842661,1.03089618,597.2,595.99,1.41948948]
[1742127842858,1.03089618,597.2,596.0,1.41948948]
[1742127843058,1.03089618,597.2,596.01,1.41948948]
[1742127843253,1.03089618,597.2,596.02,1.41948948]
[1742127843456,1.03089618,597.2,596.03,1.03945183]
[1742127843653,1.03089618,597.2,596.04,1.03945183]
[1742127843957,2.55021061,597.06,596.04,1.03945183]
[1742127844157,0.33498031,597.05,596.04,1.03945183]
[1742127844558,0.33498031,597.05,596.05,1.20941317]
[1742127845153,0.33498031,597.05,595.97,1.20941317]
[1742127845358,0.33498031,597.05,595.98,1.42043149]
[1742127845561,2.55021061,597.04,595.99,2.62984466]
[1742127845755,2.55021061,597.04,596.0,1.42043149]
[1742127845957,2.55021061,597.04,596.01,1.42043149]
[1742127846260,2.55021061,597.04,596.02,1.42043149]
[1742127846454,2.55021061,597.04,596.03,1.42043149]
[1742127846659,2.55021061,597.04,596.04,1.04020116]
[1742127847255,2.55021061,597.04,596.05,1.20941317]
[1742127847559,2.55021061,597.04,596.06,1.04020116]
[1742127847759,2.55021061,597.03,596.06,1.04020116]
[1742127847961,2.55021061,597.03,596.07,1.04020116]
[1742127848157,2.55021061,597.03,595.96,1.089]
[1742127848354,2.55021061,597.03,595.97,2.63236289]
[1742127848661,2.55021061,597.03,595.98,1.42137683]
[1742127848962,2.55021061,597.03,595.99,2.6323648]
[1742127849260,2.55021061,597.03,596.0,1.42137683]
[1742127849456,2.55021061,597.03,596.01,1.42137683]
[1742127849658,2.55021061,597.03,595.99,1.21098797]
[1742127849659,2.55021061,597.03,596.02,2.6323648]
[1742127849859,2.55021061,597.03,596.03,1.42137683]
[1742127850059,2.55021061,597.03,596.04,1.42137683]
[1742127850260,2.55021061,597.03,596.05,1.42123405]
[1742127850559,2.55021061,597.03,596.06,2.25188307]
[1742127850860,2.55021061,597.03,596.07,1.0408951]
[1742127851053,2.55021061,597.03,596.08,1.0408951]
[1742127851260,2.55021061,597.03,596.0,1.216]
[1742127851460,2.55021061,597.03,596.01,2.63030091]
[1742127851661,2.55021061,597.03,596.02,1.42015492]
[1742127851861,2.55021061,597.03,596.03,1.42015492]
[1742127852161,2.55021061,597.03,596.04,2.63030091]
[1742127852355,2.55021061,597.03,596.05,1.42015492]
[1742127852555,2.55021061,597.03,596.06,0.3801596]
[1742127852761,0.33498031,597.05,596.07,1.41968478]
[1742127852961,0.33498031,597.05,596.08,1.41968478]
[1742127853161,0.33498031,597.05,596.09,1.41968478]
[1742127853460,0.33498031,597.05,596.1,2.24967117]
[1742127853660,0.33498031,597.05,596.11,1.03952518]
[1742127853860,0.33498031,597.05,596.12,1.03952518]
[1742127854055,0.33498031,597.05,596.13,1.03952518]
[1742127854255,0.33498031,597.05,596.11,1.21014599]
[1742127854457,0.33498031,597.05,596.12,2.24916501]
[1742127854658,0.33498031,597.05,596.13,1.03901902]
[1742127855158,0.696,597.04,596.14,1.03901902]
[1742127855355,0.696,597.04,596.06,0.949]
[1742127855555,0.696,597.04,596.07,1.41790262]
[1742127855759,0.696,597.04,596.08,1.41790262]
[1742127855962,0.696,597.04,596.09,1.41790262]
[1742127856265,0.696,597.04,596.1,1.41790262]
[1742127856457,0.696,597.04,596.09,1.20811399]
[1742127856458,0.696,597.04,596.11,1.41790262]
[1742127856662,0.696,597.04,596.12,1.41790262]
[1742127856861,0.696,597.04,596.13,1.41790262]
[1742127857062,0.696,597.04,596.14,2.62601661]
[1742127857260,0.696,597.04,596.15,1.41790262]
[1742127857463,0.696,597.04,596.16,1.03836185]
[1742127857762,0.696,597.04,596.17,2.24647584]
[1742127857961,0.696,597.04,596.18,1.03836185]
[1742127858358,0.696,597.04,596.19,0.37958075]
[1742127858557,0.696,597.04,596.2,1.41794301]
[1742127858761,0.696,597.04,596.21,1.4180485]
[1742127858962,0.696,597.04,596.22,1.4180485]
[1742127859161,0.696,597.04,596.23,1.4180485]
[1742127859366,0.696,597.04,596.24,1.4180485]
[1742127859562,0.696,597.04,596.25,1.4180485]
[1742127859763,0.696,597.04,596.26,2.62616249]
[1742127859959,0.696,597.04,596.27,1.4180485]
[1742127860163,0.696,597.04,596.28,1.4180485]
[1742127860458,0.696,597.04,596.06,0.949]
[1742127860459,0.696,597.04,596.29,2.62616249]
[1742127860765,0.696,597.04,596.3,1.4180485]
[1742127860966,0.696,597.04,596.31,1.4180485]
[1742127861167,0.696,597.04,596.32,1.03850122]
[1742127861966,0.696,597.04,596.33,1.20811399]
[1742127862462,0.696,597.04,596.34,1.03872498]
[1742127862663,0.696,597.04,596.33,1.20811399]
[1742127862868,0.696,597.04,596.34,1.03879878]
[1742127863068,0.696,597.04,596.06,0.949]
[1742127863367,0.696,597.04,596.07,1.41904362]
[1742127863568,0.696,597.04,596.08,2.62761051]
[1742127863768,0.696,597.04,596.09,1.41904362]
[1742127863968,0.696,597.04,596.1,2.62761051]
[1742127864168,0.696,597.04,596.11,1.41904362]
[1742127864468,0.696,597.04,596.12,2.62761051]
[1742127864669,0.696,597.04,596.13,1.41904362]
[1742127864865,0.696,597.04,596.14,1.41875591]
[1742127865067,0.696,597.04,596.15,2.6273228]
[1742127865267,0.696,597.04,596.16,1.41875591]
[1742127865464,0.696,597.04,596.17,1.41875591]
[1742127865667,0.696,597.04,596.18,1.41875591]
[1742127865861,0.696,597.04,596.19,1.41875591]
[1742127866066,0.696,597.04,596.2,1.41875591]
[1742127866265,0.33498031,597.05,596.21,1.41875591]
[1742127866471,0.33498031,597.05,596.22,1.41875591]
[1742127866670,0.33498031,597.05,596.23,1.41875591]
[1742127866871,0.33498031,597.05,596.24,1.03900046]
[1742127867070,0.33498031,597.05,596.25,1.03900046]
[1742127867370,0.33498031,597.05,596.26,2.24756735]
[1742127867671,0.33498031,597.05,595.91,0.29170526]
[1742127867871,0.33498031,597.05,595.97,2.06042282]
[1742127868068,0.33498031,597.05,595.98,3.26699678]
[1742127868272,0.33498031,597.05,595.99,2.06041156]
[1742127868471,0.33498031,597.05,596.0,1.75235602]
[1742127868667,0.33498031,597.05,596.01,2.93141505]
[1742127868869,0.33498031,597.05,596.02,1.72483295]
[1742127869066,0.33498031,597.05,596.03,1.72483295]
[1742127869368,0.33498031,597.05,596.04,1.72483295]
[1742127869571,0.33498031,597.05,596.05,1.72483295]
[1742127869773,0.33498031,597.05,596.06,1.72483295]
[1742127869967,0.33498031,597.05,596.05,1.20657959]
[1742127869968,0.33498031,597.05,596.07,1.72483295]
[1742127870169,0.33498031,597.05,596.08,1.72483295]
[1742127870470,0.33498031,597.05,596.09,1.72483295]
[1742127870769,0.33498031,597.05,596.1,1.72387749]
[1742127870974,0.33498031,597.05,596.11,1.72387749]
[1742127871173,0.33498031,597.05,596.12,1.72387749]
[1742127871374,0.33498031,597.05,596.13,1.72387749]
[1742127871577,0.33498031,597.05,596.14,1.72387749]
[1742127871769,0.33498031,597.05,596.15,1.72387749]
[1742127871971,0.33498031,597.05,596.16,2.93045708]
[1742127872168,0.33498031,597.05,596.17,1.72387749]
[1742127872369,0.33498031,597.05,596.18,1.4158301]
[1742127872573,0.33498031,597.05,596.19,2.93043149]
[1742127872769,0.33498031,597.05,596.2,1.4158301]
[1742127872971,0.33498031,597.05,596.21,1.4157806]
[1742127873170,0.33498031,597.05,596.22,2.62236019]
[1742127873476,0.33498031,597.05,596.23,1.4157806]
[1742127873679,0.33498031,597.05,596.24,2.62236019]
[1742127873875,0.33498031,597.05,596.25,1.4157806]
[1742127874076,0.33498031,597.05,596.26,1.4157806]
[1742127874377,0.33498031,597.05,596.27,2.62236019]
[1742127874575,0.33498031,597.05,596.28,1.41553748]
[1742127874779,0.33498031,597.05,596.29,1.41553748]
[1742127874981,0.33498031,597.05,596.3,1.4154948]
[1742127875176,0.33498031,597.05,596.31,1.4154948]
[1742127875377,0.701,597.88,596.32,1.4154948]
[1742127875581,0.33452647,597.86,596.33,1.4154948]
[1742127875777,0.33452647,597.86,596.34,1.4154948]
[1742127875980,0.33452647,597.86,596.35,1.4154948]
[1742127876177,0.33452647,597.86,596.36,1.03661216]
[1742127876485,0.33452647,597.86,596.37,1.03661216]
[1742127876683,0.33452647,597.86,596.38,1.03661216]
[1742127876880,0.33452647,597.86,596.39,1.03514968]
[1742127877084,0.33452647,597.86,596.37,1.20657959]
[1742127877287,0.33452647,597.86,596.38,1.41333536]
[1742127877486,0.33452647,597.86,596.39,1.03485893]
[1742127877686,0.33452647,597.86,596.4,1.03485893]
[1742127877887,0.33452647,597.86,596.41,1.03485893]
[1742127878089,0.33452647,597.86,596.38,1.20657959]
[1742127878382,0.33452647,597.86,596.42,1.20657959]
[1742127878788,0.33452647,597.86,596.09,0.29155496]
[1742127878988,0.33452647,597.86,596.1,2.05702044]
[1742127879188,0.33452647,597.86,596.11,1.74904139]
[1742127879383,0.33452647,597.86,596.12,2.95279912]
[1742127879586,0.33452647,597.86,596.13,1.74903014]
[1742127879888,0.33452647,597.86,596.14,1.74902451]
[1742127880089,0.33452647,597.86,596.15,1.74901888]
[1742127880391,0.33452647,597.86,596.16,1.74901325]
[1742127880586,0.33452647,597.86,596.17,1.74900763]
[1742127880786,0.33452647,597.86,596.18,1.41353285]
[1742127880989,0.33452647,597.86,596.19,1.41365924]
[1742127881290,0.33452647,597.86,596.2,1.03500563]
[1742127881485,0.33452647,597.86,596.2,1.20376336]
[1742127881884,0.33452647,597.86,596.18,1.20376336]
[1742127882090,0.33452647,597.86,596.19,1.03536092]
[1742127882390,0.33452647,597.86,596.2,1.03536092]
[1742127882592,0.33452647,597.86,596.21,1.03524603]
[1742127882785,0.33452647,597.86,596.21,1.20376336]
[1742127882985,0.33452647,597.86,596.22,1.03519476]
[1742127883187,0.33452647,597.86,596.18,1.20376336]
[1742127883388,0.33452647,597.86,596.19,1.0351818]
[1742127883687,0.33452647,597.86,596.2,1.0351818]
[1742127883885,0.33452647,597.86,596.21,1.0351818]
[1742127884087,0.33452647,597.86,596.18,1.20376336]
[1742127884287,0.33452647,597.86,596.21,1.20376336]
[1742127884688,0.33452647,597.86,596.22,1.0350079]
[1742127884889,0.33452647,597.86,596.23,1.0350079]
[1742127885088,0.33452647,597.86,596.18,1.20376336]
[1742127885291,0.33452647,597.86,596.19,1.03488853]